bitfinex-derivatives/quotes_SOLF0:USTF0_20241230
["timestamp","ask_amount","ask_price","bid_price","bid_amount"]
[1735579807727,10.4545329,188.44,188.4,2.6585]
[1735579807920,7.7963329,188.46,188.38,7.7963329]
[1735579808225,11.0363329,188.48,188.4,7.7963329]
[1735579808428,11.0363329,188.48,188.42,7.7963329]
[1735579808734,11.0363329,188.48,188.42,2.6582]
[1735579809026,7.7963329,188.46,188.42,2.6582]
[1735579809329,2.6583,188.42,188.38,2.6588]
[1735579809727,7.7963329,188.44,188.37,1.5323]
[1735579811032,2.6583,188.43,188.39,2.6587]
[1735579811334,7.7963329,188.47,188.4,7.7963329]
[1735579811728,10.4540329,188.47,188.43,2.6581]
[1735579812328,2.6578,188.46,188.43,2.6581]
[1735579813828,10.4539329,188.47,188.44,2.658]
[1735579814031,7.7963329,188.47,188.44,2.658]
[1735579814933,7.7963329,188.47,188.4,7.7963329]
[1735579815135,2.6579,188.45,188.42,2.6583]
[1735579815929,2.6578,188.46,188.42,2.6583]
[1735579816732,10.4539329,188.47,188.43,2.6581]
[1735579817233,10.4539329,188.47,188.44,2.658]
[1735579818345,1.481,188.56,188.44,3.24]
[1735579818542,9.2773329,188.56,188.5,7.7963329]
[1735579818737,3.24,188.6,188.5,7.7963329]
[1735579818940,7.7963329,188.55,188.51,2.6569]
[1735579819142,7.7963329,188.55,188.48,7.7963329]
[1735579819343,7.7963329,188.53,188.46,7.7963329]
[1735579819539,10.4529329,188.55,188.45,4.7534]
[1735579819739,10.4529329,188.55,188.48,7.7963329]
[1735579820144,2.6563,188.57,188.5,7.7963329]
[1735579820339,7.7963329,188.59,188.52,7.7963329]
[1735579821150,2.6558,188.6,188.52,7.7963329]
[1735579821448,7.7963329,188.59,188.55,2.6563]
[1735579821649,10.4522329,188.59,188.55,2.6563]
[1735579821849,7.7963329,188.57,188.53,2.6567]
[1735579822054,7.7963329,188.57,188.5,7.7963329]
[1735579822355,7.7963329,188.59,188.52,7.7963329]
[1735579822743,7.7963329,188.59,188.49,3.24]
[1735579822949,7.7963329,188.59,188.53,7.7963329]
[1735579823150,7.7963329,188.59,188.55,2.6565]
[1735579823547,10.4525329,188.57,188.53,2.6567]
[1735579823748,7.7963329,188.57,188.51,7.7963329]
[1735579824150,3.24,188.64,188.53,7.7963329]
[1735579824353,7.7963329,188.6,188.53,7.7963329]
[1735579824855,7.7963329,188.58,188.55,2.6565]
[1735579825058,7.7963329,188.6,188.53,7.7963329]
[1735579825353,10.4522329,188.6,188.53,7.7963329]
[1735579825556,10.4522329,188.6,188.54,1.5924]
[1735579825756,10.4519329,188.62,188.58,2.656]
[1735579826857,7.7963329,188.62,188.55,7.7963329]
[1735579827057,2.6557,188.61,188.55,7.7963329]
[1735579827253,7.7963329,188.62,188.55,7.7963329]
[1735579827758,10.4519329,188.62,188.57,2.6562]
[1735579828253,7.7963329,188.6,188.57,2.6562]
[1735579828454,7.7963329,188.6,188.54,1.5924]
[1735579828654,7.7963329,188.58,188.54,1.5924]
[1735579828960,10.4524329,188.58,188.54,1.5924]
[1735579829160,7.7963329,188.58,188.51,7.7963329]
[1735579829358,2.6562,188.57,188.51,7.7963329]
[1735579829858,7.7963329,188.58,188.54,2.6566]
[1735579830658,2.656,188.59,188.55,2.6564]
[1735579830856,10.4523329,188.59,188.55,2.6564]
[1735579831053,7.7963329,188.59,188.51,7.7963329]
[1735579831259,2.6563,188.57,188.53,2.6567]
[1735579831660,2.6563,188.57,188.51,7.7963329]
[1735579832163,7.7963329,188.59,188.49,3.44]
[1735579832462,7.7963329,188.53,188.46,1.571]
[1735579832657,7.7963329,188.49,188.46,1.571]
[1735579832861,7.7963329,188.49,188.42,7.7963329]
[1735579832862,7.7963329,188.49,188.45,1.6219]
[1735579833258,2.6572,188.5,188.45,1.6219]
[1735579833459,7.7963329,188.51,188.45,1.6219]
[1735579834365,3.44,188.53,188.45,1.6219]
[1735579834558,6.0969,188.53,188.47,2.6576]
[1735579834763,6.0969,188.53,188.45,1.6219]
[1735579834959,3.44,188.53,188.45,1.6219]
[1735579835264,2.6571,188.51,188.47,2.6576]
[1735579836465,2.657,188.52,188.48,2.6575]
[1735579836666,3.44,188.59,188.48,12.18789686]
[1735579837167,2.6565,188.55,188.51,2.657]
[1735579837366,3.44,188.59,188.51,2.657]
[1735579837759,12.18789686,188.57,188.45,1.6219]
[1735579837964,12.18789686,188.54,188.45,1.6219]
[1735579838169,3.44,188.53,188.45,1.6219]
[1735579838568,2.6573,188.5,188.46,2.6577]
[1735579838768,3.44,188.53,188.46,2.6577]
[1735579839069,2.6571,188.51,188.46,2.6577]
[1735579839266,3.44,188.53,188.44,91.43652619]
[1735579839465,3.44,188.53,188.47,2.6576]
[1735579839667,2.6572,188.51,188.47,2.6576]
[1735579841271,2.6572,188.5,188.47,2.6576]
[1735579841665,2.6575,188.48,188.45,2.6579]
[1735579841866,12.18789686,188.49,188.4,5.61082502]
[1735579842070,3.44,188.48,188.4,4.01512502]
[1735579843573,2.6583,188.43,188.39,2.6586]
[1735579843773,2.6583,188.43,188.35,1.5098]
[1735579843774,3.44,188.43,188.35,1.5098]
[1735579844074,2.6586,188.4,188.36,2.6591]
[1735579844270,15.62789686,188.43,188.32,3.0474]
[1735579844666,2.6585,188.41,188.33,4.98208163]
[1735579844871,2.6585,188.41,188.32,3.0474]
[1735579845070,12.18789686,188.4,188.32,1.5028]
[1735579845371,2.6593,188.35,188.32,1.5028]
[1735579845573,2.6593,188.35,188.3,1.6315]
[1735579845772,3.44,188.38,188.27,13.67039686]
[1735579845972,2.6595,188.34,188.27,1.4825]
[1735579846169,3.44,188.38,188.27,1.4825]
[1735579846170,12.18789686,188.37,188.27,1.4825]
[1735579846374,2.6597,188.33,188.28,2.6603]
[1735579847371,12.18789686,188.37,188.28,2.6603]
[1735579847577,12.18789686,188.37,188.27,2.6604]
[1735579847777,12.18789686,188.34,188.27,2.6604]
[1735579847978,2.6598,188.32,188.27,2.6604]
[1735579848875,2.6599,188.31,188.27,2.6604]
[1735579849975,2.6601,188.3,188.25,2.6607]
[1735579850982,2.6603,188.29,188.24,2.6609]
[1735579851177,12.18789686,188.32,188.23,1.4825]
[1735579852082,13.72119686,188.32,188.21,4.194]
[1735579852377,12.18789686,188.29,188.18,1.5157]
[1735579852585,3.46,188.28,188.2,2.6614]
[1735579852788,2.6609,188.25,188.2,2.6614]
[1735579852980,3.46,188.28,188.22,2.661]
[1735579853182,3.46,188.28,188.18,1.5157]
[1735579855281,2.6609,188.24,188.2,2.6614]
[1735579855476,2.6609,188.24,188.18,1.5157]
[1735579855681,12.18789686,188.26,188.18,1.5157]
[1735579856189,2.6613,188.21,188.18,1.5157]
[1735579856390,3.38,188.23,188.13,12.18789686]
[1735579856689,3.38,188.22,188.12,3.38]
[1735579856885,3.38,188.22,188.1,12.18789686]
[1735579857279,12.18789686,188.2,188.1,12.18789686]
[1735579857479,12.18789686,188.17,188.07,4.6361]
[1735579857686,3.38,188.16,188.07,4.6361]
[1735579857888,2.6623,188.15,188.1,2.6629]
[1735579858188,3.38,188.16,188.07,16.82399686]
[1735579858393,2.6623,188.15,188.09,2.6629]
[1735579858589,2.6623,188.15,188.07,16.82399686]
[1735579858789,3.38,188.16,188.07,16.82399686]
[1735579859091,3.38,188.18,188.07,16.82399686]
[1735579859693,12.18789686,188.23,188.1,12.18789686]
[1735579859986,3.38,188.22,188.1,12.18789686]
[1735579860294,2.6616,188.19,188.15,2.6621]
[1735579861387,3.38,188.21,188.12,2.6625]
[1735579861586,12.18789686,188.2,188.07,16.82399686]
[1735579861981,2.6622,188.15,188.07,16.82399686]
[1735579862293,12.18789686,188.2,188.07,16.82399686]
[1735579862595,12.18789686,188.2,188.11,2.6626]
[1735579862989,2.6621,188.16,188.07,16.82399686]
[1735579863188,2.6621,188.16,188.12,2.6625]
[1735579863689,12.18789686,188.2,188.07,16.82399686]
[1735579863894,2.6624,188.14,188.1,2.6628]
[1735579864096,12.18789686,188.2,188.1,2.6628]
[1735579864293,2.6619,188.17,188.1,2.6628]
[1735579864489,3.38,188.16,188.1,2.6628]
[1735579864692,1.5987,188.27,188.13,2.6623]
[1735579864988,12.18789686,188.22,188.1,12.18789686]
[1735579865295,3.38,188.21,188.1,12.18789686]
[1735579865593,3.38,188.21,188.11,3.38]
[1735579865788,3.38,188.21,188.13,12.18789686]
[1735579865985,3.38,188.21,188.14,1.5585]
[1735579866187,2.6613,188.22,188.17,2.6618]
[1735579866589,2.6609,188.24,188.2,2.6613]
[1735579866786,15.56789686,188.28,188.16,12.18789686]
[1735579866991,3.38,188.28,188.19,12.18789686]
[1735579867289,3.38,188.28,188.23,2.6609]
[1735579867290,6.0405,188.28,188.23,2.6609]
[1735579867495,3.38,188.28,188.19,12.18789686]
[1735579867788,12.18789686,188.28,188.16,15.56789686]
[1735579868095,12.18789686,188.25,188.16,3.38]
[1735579868289,2.6614,188.21,188.15,3.0347]
[1735579868690,3.38,188.24,188.15,3.0347]
[1735579868889,2.6613,188.22,188.18,2.6617]
[1735579869493,2.6613,188.22,188.15,3.0347]
[1735579869792,2.6613,188.22,188.17,2.6619]
[1735579870194,2.6614,188.21,188.17,2.6619]
[1735579870700,3.38,188.24,188.15,3.0347]
[1735579870701,2.6616,188.2,188.16,2.6621]
[1735579871797,3.38,188.24,188.15,3.0347]
[1735579873093,2.6612,188.22,188.15,5.6967]
[1735579873293,3.38,188.24,188.15,5.6967]
[1735579873489,3.38,188.24,188.15,3.0347]
[1735579873793,2.6611,188.22,188.18,2.6616]
[1735579873990,12.18789686,188.22,188.15,3.0347]
[1735579874197,12.18789686,188.22,188.15,1.5596]
[1735579874695,2.6614,188.2,188.15,1.5596]
[1735579874990,15.95,188.48,188.15,1.5596]
[1735579875197,12.18789686,188.32,188.18,12.18789686]
[1735579875390,3.38,188.32,188.22,2.6611]
[1735579875592,12.18789686,188.32,188.19,3.38]
[1735579875791,2.6604,188.28,188.23,2.6609]
[1735579875988,3.38,188.31,188.23,2.6609]
[1735579876589,2.6605,188.27,188.19,3.38]
[1735579876795,12.18789686,188.29,188.22,2.6611]
[1735579876993,12.18789686,188.29,188.18,41.11476067]
[1735579877199,12.18789686,188.29,188.19,2.6615]
[1735579877397,12.18789686,188.29,188.18,41.11476067]
[1735579877797,2.6604,188.28,188.21,12.18789686]
[1735579878297,3.38,188.31,188.21,12.18789686]
[1735579878298,2.66,188.31,188.26,2.6604]
[1735579878598,3.38,188.34,188.22,4.8723]
[1735579878798,12.18789686,188.32,188.22,4.8723]
[1735579879003,12.18789686,188.29,188.22,30.41916381]
[1735579879704,2.6606,188.26,188.22,30.41916381]
[1735579879903,12.18789686,188.29,188.22,30.41916381]
[1735579880205,12.18789686,188.29,188.22,1.4923]
[1735579881495,12.18789686,188.32,188.22,1.4923]
[1735579881897,2.6602,188.29,188.25,2.6607]
[1735579882101,12.18789686,188.35,188.24,12.18789686]
[1735579882499,2.6595,188.34,188.24,12.18789686]
[1735579882903,12.18789686,188.35,188.24,12.18789686]
[1735579883807,2.6596,188.33,188.28,2.6602]
[1735579884008,15.56789686,188.38,188.27,12.18789686]
[1735579884200,15.56789686,188.38,188.28,3.38]
[1735579884402,2.6594,188.34,188.3,2.6599]
[1735579884708,12.18789686,188.38,188.28,4.8791]
[1735579884907,2.6599,188.31,188.28,4.8791]
[1735579885497,12.18789686,188.35,188.25,9.89231595]
[1735579885701,15.52789686,188.35,188.25,9.89231595]
[1735579885899,2.6601,188.3,188.25,2.6606]
[1735579886506,15.52789686,188.35,188.24,7.23171595]
[1735579886507,2.6604,188.27,188.24,7.23171595]
[1735579886709,12.18789686,188.32,188.24,7.23171595]
[1735579887009,12.18789686,188.32,188.23,1.5822]
[1735579887207,2.6607,188.26,188.23,1.5822]
[1735579887410,15.52789686,188.29,188.22,7.23171595]
[1735579887709,2.661,188.23,188.18,36.30006381]
[1735579887906,15.52789686,188.29,188.18,33.63846381]
[1735579888411,2.661,188.24,188.2,2.6614]
[1735579888806,2.6605,188.27,188.23,2.661]
[1735579889007,2.6605,188.27,188.18,45.82636067]
[1735579889008,12.18789686,188.32,188.21,15.52789686]
[1735579889517,2.6602,188.29,188.24,2.6607]
[1735579889707,2.6602,188.29,188.21,15.52789686]
[1735579889901,12.18789686,188.32,188.21,15.52789686]
[1735579890306,12.18789686,188.32,188.22,13.71808676]
[1735579890511,2.66,188.3,188.23,4.62072934]
[1735579890714,2.66,188.3,188.24,8.74653431]
[1735579890910,12.18789686,188.32,188.23,4.97187654]
[1735579891212,12.18789686,188.32,188.26,2.6605]
[1735579891213,2.66,188.3,188.26,2.6605]
[1735579891608,12.18789686,188.32,188.26,2.6605]
[1735579891804,2.6601,188.29,188.26,2.6605]
[1735579892205,2.6601,188.29,188.25,4.1539]
[1735579893013,2.6605,188.26,188.25,1.4933]
[1735579893215,12.18789686,188.32,188.25,1.4933]
[1735579894206,2.6601,188.3,188.26,2.6605]
[1735579895217,2.6601,188.29,188.26,2.6605]
[1735579895516,12.18789686,188.32,188.25,1.4933]
[1735579898216,2.66,188.28,188.25,4.1537]
[1735579899717,2.6598,188.3,188.25,1.4933]
[1735579901117,2.6598,188.3,188.26,2.6602]
[1735579901324,12.18789686,188.32,188.25,1.4933]
[1735579901819,2.6598,188.3,188.26,2.6602]
[1735579903613,2.6598,188.3,188.27,2.66]
[1735579904424,2.659,188.35,188.29,2.6598]
[1735579904720,12.18789686,188.41,188.3,12.18789686]
[1735579904922,2.6583,188.4,188.36,2.6587]
[1735579905119,3.81525821,188.43,188.33,12.18789686]
[1735579905319,1.5115,188.46,188.34,1.5076]
[1735579905516,15.52789686,188.47,188.34,1.5076]
[1735579905721,2.6576,188.45,188.36,12.18789686]
[1735579905926,2.6576,188.45,188.37,4.8855]
[1735579906633,2.6573,188.47,188.37,4.8855]
[1735579906930,2.6573,188.47,188.39,12.18789686]
[1735579907125,3.34,188.52,188.39,12.18789686]
[1735579907327,12.18789686,188.53,188.39,12.18789686]
[1735579907534,12.18789686,188.53,188.42,12.18789686]
[1735579907829,12.18789686,188.53,188.43,6.4279]
[1735579908429,2.6568,188.51,188.46,2.6574]
[1735579908724,2.6568,188.51,188.43,6.4279]
[1735579909735,2.6569,188.5,188.43,3.0879]
[1735579909932,2.6569,188.5,188.44,3.34]
[1735579910325,2.6569,188.5,188.45,2.6574]
[1735579911532,2.6567,188.52,188.46,2.6574]
[1735579911726,12.18789686,188.53,188.46,2.6574]
[1735579912632,2.6568,188.51,188.46,2.6574]
[1735579913138,13.79749686,188.57,188.45,12.18789686]
[1735579913337,12.18789686,188.6,188.46,1.4912]
[1735579913540,12.18789686,188.62,188.54,2.6562]
[1735579913836,2.6557,188.58,188.54,2.6562]
[1735579914134,12.18789686,188.62,188.51,15.52789686]
[1735579914339,12.18789686,188.62,188.52,3.1694]
[1735579914536,1.6218,188.63,188.57,2.6558]
[1735579914735,3.81043258,188.7,188.58,12.18789686]
[1735579915538,3.81043258,188.7,188.62,2.6551]
[1735579915734,3.81043258,188.7,188.58,12.18789686]
[1735579916141,3.81043258,188.7,188.57,3.32]
[1735579916341,12.18789686,188.68,188.57,3.32]
[1735579917228,12.18789686,188.68,188.6,2.6554]
[1735579917927,12.18789686,188.68,188.57,3.32]
[1735579917928,12.18789686,188.68,188.61,2.6553]
[1735579918240,12.18789686,188.68,188.58,12.18789686]
[1735579918635,2.6547,188.66,188.58,12.18789686]
[1735579919032,12.18789686,188.68,188.58,12.18789686]
[1735579920439,2.6548,188.65,188.61,2.6552]
[1735579920737,12.18789686,188.68,188.58,12.18789686]
[1735579920934,12.18789686,188.68,188.62,2.655]
[1735579920935,2.6545,188.68,188.62,2.655]
[1735579921132,12.18789686,188.71,188.62,3.3]
[1735579921338,15.48789686,188.74,188.62,3.3]
[1735579922239,15.48789686,188.74,188.63,12.18789686]
[1735579922441,15.48789686,188.74,188.65,2.6547]
[1735579922740,12.18789686,188.74,188.65,2.6547]
[1735579922937,15.48789686,188.74,188.65,2.6547]
[1735579923332,5.304,188.85,188.63,1.6334]
[1735579923541,12.18789686,188.78,188.66,12.18789686]
[1735579923741,12.18789686,188.78,188.67,3.3]
[1735579924143,12.18789686,188.78,188.68,1.6348]
[1735579924339,5.3021,188.92,188.68,1.6348]
[1735579924340,7.52999686,189.01,188.68,1.6348]
[1735579924539,65.30923104,189.05,189.0,12.18789686]
[1735579924743,87.94208495,189.11,189.04,24.37579372]
[1735579924942,577.3879,189.12,189.1,12.18789686]
[1735579925142,577.3879,189.12,189.09,12.18789686]
[1735579925343,3.78,189.11,188.85,3.78]
[1735579925647,3.78,189.11,189.06,12.18789686]
[1735579925937,3.78,189.11,189.03,12.18789686]
[1735579926344,3.78,189.11,189.02,506.66261467]
[1735579926543,3.78,189.11,189.01,506.66261467]
[1735579926844,3.78,189.11,189.03,19.38145056]
[1735579927138,1.5965,189.21,189.07,19.38145056]
[1735579927339,5.3359,189.2,189.07,19.38145056]
[1735579927548,1.5559,189.2,189.07,19.38145056]
[1735579927846,3.78,189.19,189.05,419.88202323]
[1735579928243,19.38145056,189.17,189.05,419.88202323]
[1735579928548,3.78,189.19,189.04,34.26049947]
[1735579928742,3.78,189.19,189.03,19.38145056]
[1735579929446,3.78,189.18,189.07,19.38145056]
[1735579929941,3.78,189.17,189.1,19.38145056]
[1735579930142,3.78,189.17,189.06,19.38145056]
[1735579930342,3.78,189.17,189.03,22.03075056]
[1735579930537,3.78,189.17,189.03,19.38145056]
[1735579931646,3.78,189.17,189.0,19.38145056]
[1735579933952,3.78,189.17,189.03,19.38145056]
[1735579934152,3.78,189.16,189.06,19.38145056]
[1735579934655,3.78,189.15,189.06,19.38145056]
[1735579934852,3.78,189.15,189.03,19.38145056]
[1735579935050,3.78,189.15,189.0,19.38145056]
[1735579937658,3.78,189.14,189.03,19.38145056]
[1735579938159,3.78,189.14,189.0,19.38145056]
[1735579938459,1.5731,189.13,189.0,19.38145056]
[1735579939152,19.38145056,189.1,188.95,1.4812]
[1735579939363,19.38145056,189.04,188.91,2.6512]
[1735579939652,19.38145056,189.04,188.9,0.18521]
[1735579939856,3.78,189.03,188.91,2.6513]
[1735579940054,22.48865056,189.09,188.9,0.18521]
[1735579940253,3.78,189.08,188.94,19.38145056]
[1735579941658,3.78,189.08,188.91,19.38145056]
[1735579941859,22.48865056,189.09,188.9,0.18521]
[1735579942062,4.0,189.08,188.97,2.6505]
[1735579942657,3.1072,189.09,188.97,2.6505]
[1735579942967,4.0,189.07,188.95,3.2201]
[1735579943662,4.0,189.07,188.95,1.6227]
[1735579943961,4.0,189.07,188.93,19.38145056]
[1735579944361,19.38145056,189.06,188.9,21.08406056]
[1735579944762,19.38145056,189.03,188.9,1.70261]
[1735579945357,1.5866,189.02,188.9,1.70261]
[1735579945658,4.0,189.01,188.9,1.70261]
[1735579946766,4.0,189.01,188.9,0.18521]
[1735579946959,4.0,189.01,188.87,20.97175056]
[1735579947264,4.0,189.01,188.88,2.6517]
[1735579947857,4.0,189.01,188.87,20.97175056]
[1735579948059,4.0,189.01,188.89,2.6516]
[1735579948257,4.0,189.01,188.87,20.97175056]
[1735579949063,1.5866,189.02,188.89,2.6516]
[1735579949260,4.0,189.01,188.89,2.6516]
[1735579950257,4.0,189.01,188.87,23.62365056]
[1735579950667,23.38145056,189.01,188.87,23.62365056]
[1735579951366,23.38145056,189.01,188.88,2.6517]
[1735579951560,4.0,189.0,188.87,20.97175056]
[1735579951964,4.0,189.0,188.9,2.6515]
[1735579952858,1.5866,189.02,188.87,20.97175056]
[1735579953058,1.5866,189.02,188.93,19.38145056]
[1735579953267,4.0,189.01,188.93,19.38145056]
[1735579953464,4.0,189.0,188.97,2.6504]
[1735579953661,1.6264,189.08,188.96,19.38145056]
[1735579953865,4.0,189.07,188.96,19.38145056]
[1735579954064,4.0,189.07,188.99,19.38145056]
[1735579954263,4.0,189.07,188.97,3.2287]
[1735579955064,4.0,189.1,189.03,2.6496]
[1735579955269,4.0,189.09,188.99,19.38145056]
[1735579955568,4.0,189.09,189.03,2.6496]
[1735579955964,4.0,189.09,188.99,19.38145056]
[1735579956169,3.1113,189.17,189.02,19.38145056]
[1735579956365,4.0,189.16,189.05,19.38145056]
[1735579956566,4.0,189.16,189.02,19.38145056]
[1735579956761,4.0,189.16,189.04,2.6495]
[1735579959576,3.1113,189.17,189.02,19.38145056]
[1735579959874,4.0,189.16,189.05,19.38145056]
[1735579960078,4.0,189.16,189.08,2.6489]
[1735579960375,4.0,189.16,189.02,19.38145056]
[1735579960673,4.0,189.16,189.06,2.6492]
[1735579961174,4.0,189.16,189.02,19.38145056]
[1735579961375,4.0,189.16,189.05,2.6494]
[1735579961677,4.0,189.16,189.06,5.12114356]
[1735579962066,4.0,189.16,189.04,2.6494]
[1735579962272,4.0,189.16,189.05,5.13096777]
[1735579962774,4.0,189.16,189.06,5.13096777]
[1735579962976,4.0,189.16,189.02,19.38145056]
[1735579962977,7.13940736,189.25,189.13,2.6482]
[1735579963172,7.13940736,189.25,189.12,19.38145056]
[1735579963379,7.13940736,189.25,189.13,17.92511975]
[1735579963572,7.13940736,189.25,189.18,2.6475]
[1735579963973,7.13940736,189.25,189.19,5.13096777]
[1735579964374,4.0,189.32,189.2,5.13096777]
[1735579964568,4.0,189.32,189.21,2.6471]
[1735579964771,4.0,189.32,189.21,13.3446543]
[1735579964968,4.0,189.32,189.22,5.13096777]
[1735579965173,4.0,189.32,189.25,2.6465]
[1735579965779,4.0,189.32,189.26,5.13096777]
[1735579966080,19.38145056,189.36,189.27,5.13096777]
[1735579966272,19.38145056,189.36,189.14,19.38145056]
[1735579966273,19.38145056,189.3,189.15,10.80906003]
[1735579966474,4.0,189.29,189.21,2.6471]
[1735579966677,4.0,189.28,189.21,2.6471]
[1735579966881,4.0,189.29,189.22,8.11524251]
[1735579967076,4.0,189.31,189.22,8.11524251]
[1735579967281,4.0,189.31,189.23,8.11524251]
[1735579967481,7.13940736,189.45,189.26,19.38145056]
[1735579967681,23.38145056,189.42,189.27,4.16444877]
[1735579967887,4.0,189.42,189.28,4.16444877]
[1735579968074,4.0,189.42,189.29,4.16444877]
[1735579968375,19.38145056,189.44,189.3,10.76104251]
[1735579968578,19.38145056,189.44,189.31,10.82795483]
[1735579968579,4.0,189.42,189.31,10.82795483]
[1735579968781,4.0,189.42,189.32,4.1653387]
[1735579968978,4.0,189.41,189.34,2.6453]
[1735579969277,4.0,189.41,189.35,4.16298892]
[1735579969491,4.0,189.41,189.35,8.11524251]
[1735579969675,4.0,189.42,189.35,10.76044251]
[1735579969873,4.0,189.42,189.27,19.38145056]
[1735579970073,4.0,189.42,189.36,8.11239068]
[1735579970279,4.0,189.42,189.37,8.11239068]
[1735579970772,4.0,189.42,189.29,4.50714316]
[1735579970978,4.0,189.42,189.3,15.31718572]
[1735579971178,23.64340067,189.43,189.34,19.38145056]
[1735579971379,23.64340067,189.43,189.35,7.38080868]
[1735579971676,23.64340067,189.43,189.35,3.2231]
[1735579972580,27.62340067,189.43,189.36,2.645]
[1735579972980,27.62340067,189.43,189.38,2.6448]
[1735579973175,27.62340067,189.43,189.35,3.2231]
[1735579973683,27.62340067,189.43,189.36,4.1886]
[1735579973882,27.62340067,189.43,189.36,1.5437]
[1735579974384,27.62340067,189.43,189.28,19.38145056]
[1735579974586,19.38145056,189.42,189.29,1.586]
[1735579974887,27.62340067,189.43,189.29,1.586]
[1735579975283,27.62340067,189.43,189.31,2.6457]
[1735579975582,27.62340067,189.43,189.29,1.586]
[1735579976887,19.38145056,189.41,189.29,1.586]
[1735579977184,19.38145056,189.38,189.29,1.586]
[1735579977387,3.98,189.37,189.24,2.6467]
[1735579977589,19.38145056,189.35,189.24,2.6467]
[1735579977785,19.38145056,189.35,189.22,1.5846]
[1735579977982,19.38145056,189.35,189.26,2.6464]
[1735579978384,19.38145056,189.32,189.22,1.5846]
[1735579978586,3.98,189.31,189.22,4.2316]
[1735579978785,3.98,189.31,189.22,1.5846]
[1735579979388,3.98,189.31,189.22,4.2315]
[1735579979981,3.98,189.31,189.24,2.6467]
[1735579980286,3.98,189.31,189.22,1.5846]
[1735579980881,3.98,189.31,189.23,2.6468]
[1735579981083,3.98,189.31,189.16,19.38145056]
[1735579981284,3.98,189.31,189.1,4.6383]
[1735579981593,3.98,189.31,189.17,19.38145056]
[1735579981788,3.98,189.31,189.2,19.38145056]
[1735579981997,3.98,189.31,189.21,4.5087]
[1735579982383,3.98,189.31,189.28,2.6461]
[1735579982984,19.38145056,189.39,189.28,2.6461]
[1735579983184,55.02,189.41,189.23,19.38145056]
[1735579983395,3.98,189.38,189.26,19.38145056]
[1735579983986,23.36145056,189.38,189.22,19.38145056]
[1735579985995,55.02,189.41,189.22,19.38145056]
[1735579986193,3.98,189.4,189.22,23.36145056]
[1735579986397,3.98,189.4,189.3,2.6458]
[1735579987094,55.02,189.41,189.26,19.38145056]
[1735579987300,23.64340067,189.43,189.33,19.38145056]
[1735579987501,23.64340067,189.43,189.38,2.6447]
[1735579988196,19.38145056,189.41,189.12,5.2968]
[1735579988396,3.98,189.4,189.3,19.38145056]
[1735579988591,3.98,189.4,189.26,19.38145056]
[1735579989301,3.98,189.4,189.3,2.6458]
[1735579989501,3.98,189.4,189.26,19.38145056]
[1735579989704,19.38145056,189.39,189.23,19.38145056]
[1735579990300,19.38145056,189.39,189.21,1.5109]
[1735579990499,19.38145056,189.36,189.21,1.5109]
[1735579990700,19.38145056,189.33,189.21,2.647]
[1735579990903,19.38145056,189.33,189.19,3.2224]
[1735579990904,3.98,189.32,189.19,3.2224]
[1735579991099,5.6131,189.32,189.19,1.6101]
[1735579991300,1.5968,189.31,189.19,1.6101]
[1735579991805,5.6131,189.32,189.19,1.6101]
[1735579992102,19.38145056,189.3,189.16,1.5924]
[1735579992900,19.38145056,189.3,189.19,2.6473]
[1735579993102,19.38145056,189.3,189.16,1.5924]
[1735579993501,19.38145056,189.3,189.2,2.6473]
[1735579994300,4.2,189.29,189.21,2.6471]
[1735579994504,4.2,189.29,189.16,1.5924]
[1735579994902,4.2,189.29,189.2,2.6473]
[1735579995305,4.2,189.29,189.16,1.5924]
[1735579996204,4.2,189.29,189.23,2.6468]
[1735579996404,4.2,189.29,189.17,4.92752975]
[1735579996601,18.73600067,189.43,189.28,19.38145056]